[Event "98th Caplin Hastings Masters 2024-25"]
[Site "Hastings"]
[Date "2025.01.01"]
[Round "7.15"]
[White "Abrahams, Daniel"]
[Black "Bozinakis, Pavlos"]
[Result "0-1"]
[ECO "E36"]
[WhiteElo "2072"]
[BlackElo "2271"]
[Annotator "TA"]
[PlyCount "104"]
[EventDate "2024.12.23"]
[EventType "swiss"]
[EventCountry "ENG"]
[SourceTitle "playchess.com"]
[Source "ChessBase"]
[SourceQuality "1"]
[TimeControl "5400+30"]

{[%evp 15,104,23,26,7,15,0,0,1,9,11,10,0,22,9,25,0,0,0,0,0,3,-2,0,-13,-12,-11,0,0,0,0,0,0,0,0,0,0,0,0,0,0,0,0,0,0,0,0,0,0,0,0,0,-82,-65,-75,-88,-388,-381,-379,-379,-397,-377,-326,-158,-425,-425,-493,-247,-240,-118,-88,-18,-47,-8,-8,-8,-8,-8,-8,-8,-8,-8,-8,-8,-8,-8,-8,-14,-24,-31,-29976,-29976]} 1. d4 {[%emt 0:00:02]} Nf6 {[%emt 0:00:13]} 2. c4 {[%emt 0:00:06]} e6 {[%emt 0:00:13]} 3. Nc3 {[%emt 0:00:06]} Bb4 {[%emt 0:00:19]} 4. Qc2 {[%emt 0:00:10]} O-O {[%emt 0:00:26]} 5. a3 {[%emt 0:00:06]} Bxc3+ {[%emt 0:00:11]} 6. Qxc3 {[%emt 0:00:05]} d5 {[%emt 0:00:28]} 7. Nf3 {[%emt 0:00:13]} dxc4 {[%emt 0:00:43]} 8. Qxc4 {[%emt 0:06:18]} b6 {[%emt 0:00:23] Black is weak on the dark squares} 9. Bg5 {[%emt 0:00:20]} Bb7 {[%emt 0:00:38] Inhibits e4.} 10. e3 {[%emt 0:04:34]} Nbd7 {[%emt 0:04:17]} 11. Be2 {[%emt 0:01:58] The position is equal.} h6 {[%emt 0:00:55]} 12. Bxf6 {[%emt 0:00:40]} Nxf6 {[%emt 0:00:38]} 13. O-O {[%emt 0:00:11]} Rc8 {[%emt 0:03:53]} 14. b4 {[%emt 0:00:42]} Qd6 {[%emt 0:00:56]} 15. h3 {[%emt 0:03:00]} c5 {[%emt 0:03:49]} 16. dxc5 {[%emt 0:00:29]} bxc5 {[%emt 0:00:09]} 17. Rfd1 {[%emt 0:00:32]} Bd5 {[%emt 0:04:46]} 18. Qh4 {[%emt 0:03:09][%cal Oe3e4] Hoping for e4!} Rfd8 {[%emt 0:01:39]} 19. Bc4 {[%emt 0:07:44]} Qb6 {[%emt 0:03:59]} 20. Bxd5 {[%emt 0:00:35]} Rxd5 {[%emt 0:03:19]} 21. Rxd5 {[%emt 0:04:48]} Nxd5 {[%emt 0:00:09]} 22. Rc1 {[%emt 0:01:35]} a5 {[%emt 0:04:01][%cal Ra5b4]} 23. Rxc5 {[%emt 0:14:14]} Rxc5 {[%emt 0:00:10]} 24. bxc5 {[%emt 0:00:05]} Qxc5 $11 {[%emt 0:00:16][%mdl 4096] Endgame. KQN-KQN} 25. Qa4 {[%emt 0:00:21]} Nc3 {[%emt 0:03:53]} 26. Qe8+ {[%emt 0:04:30]} Qf8 {[%emt 0:00:13]} 27. Qxf8+ {[%emt 0:00:23]} Kxf8 {[%emt 0:00:09] KN-KN} 28. Ne5 {[%emt 0:00:08]} a4 {[%emt 0:00:59]} 29. Kf1 {[%emt 0:00:40]} Ke7 {[%emt 0:01:20]} 30. Nc4 {[%emt 0:00:32]} Kd7 {[%emt 0:00:48]} 31. Ke1 $1 {[%emt 0:00:18]} Kc6 {[%emt 0:00:57] Threatens to win with ...Kc5.} 32. Kd2 $1 {[%emt 0:04:01]} (32. Ne5+ Kd5 33. Nxf7 Nb1 $15) 32... Ne4+ {[%emt 0:00:26]} 33. Kd3 {[%emt 0:04:59]} (33. Ke2 $11) 33... Nxf2+ $17 {[%emt 0:05:58]} 34. Kd4 {[%emt 0:00:06]} f6 {[%emt 0:03:49] Dodges Ne5+} 35. e4 $2 {[%emt 0:00:37][%mdl 8192]} (35. Nb2 $17) 35... e5+ $19 {[%emt 0:07:29]} 36. Ke3 {[%emt 0:00:24] [#]} Nd1+ {[%emt 0:00:06]} 37. Kd3 {[%emt 0:04:01]} Kc5 {[%emt 0:01:01]} 38. Nd2 {[%emt 0:00:23]} h5 {[%emt 0:03:18]} (38... g6 $19 {and Black stays clearly on top. aiming for ...f5.} 39. h4 h5) 39. h4 $2 {[%emt 0:01:36]} (39. Nb1 $17) 39... g6 {[%emt 0:00:40]} 40. g3 {[%emt 0:00:43]} Kb5 {[%emt 0:02:59]} (40... Nf2+ $142 41. Ke2 Nh1 (41... Ng4 $2 42. Kd3 $19)) 41. Nb1 {[%emt 0:02:12] [#]} f5 {[%emt 0:05:16]} (41... Nb2+ $1 $19 {is more deadly.} 42. Kc2 Nc4) 42. Kc2 $17 {[%emt 0:03:07]} Ne3+ {[%emt 0:02:12]} (42... Nf2 $17 43. Nc3+ Kc6 44. exf5 gxf5 45. Nxa4 Ne4) 43. Kd3 $11 {[%emt 0:00:13]} Nf1 {[%emt 0:00:50]} 44. Nc3+ {[%emt 0:00:21]} Kc6 {[%emt 0:02:23]} 45. Nxa4 {[%emt 0:03:43]} Nxg3 {[%emt 0:00:09]} 46. Nc3 {[%emt 0:00:18]} fxe4+ {[%emt 0:01:22]} 47. Nxe4 {[%emt 0:03:27]} Nf5 {[%emt 0:00:08]} 48. Nf6 {[%emt 0:00:24]} Nxh4 {[%emt 0:00:47] ...Nf5 is the strong threat.} 49. Ke4 {[%emt 0:00:14]} Kd6 {[%emt 0:00:50] White must now prevent ...Nf5.} 50. a4 {[%emt 0:00:53][%cal Ba3a4,Ba4a5][%mdl 32]} Nf5 {[%emt 0:01:15] ...Ke6 would now be deadly.} 51. a5 $1 {[%emt 0:04:49]} Ke6 {[%emt 0:03:25]} 52. Ne8 {[%emt 0:00:22][%mdl 8192]} (52. a6 $15 Nd6+ (52... Kxf6 $2 {perishes.} 53. a7 $18) 53. Kf3) 52... Nd6+ {[%emt 0:01:15] Weighted Error Value: White=0.30/Black=0.16 (very precise) .  Loses game:     	White=3     	---        Missed win:     	---       	Black=1      Mistake:       	White=1     	Black=3      Inaccurate:     	---       	Black=1      OK:         	White=21    	Black=13     Best:        	White=3     	Black=6      Strong:       	White=3     	---} 0-1

[Event "98th Caplin Hastings Masters 2024-25"]
[Site "Hastings"]
[Date "2025.01.01"]
[Round "7.16"]
[White "Badacsonyi, Stanley"]
[Black "Adams, Henry"]
[Result "1/2-1/2"]
[ECO "E46"]
[WhiteElo "2266"]
[BlackElo "1991"]
[Annotator "RC"]
[PlyCount "66"]
[EventDate "2024.12.23"]
[EventType "swiss"]
[EventCountry "ENG"]
[SourceTitle "playchess.com"]
[Source "ChessBase"]
[SourceQuality "1"]
[TimeControl "5400+30"]

1. d4 {[%emt 0:00:01]} Nf6 {[%emt 0:00:07]} 2. c4 {[%emt 0:00:25]} e6 {[%emt 0:00:40]} 3. Nc3 {[%emt 0:00:04]} Bb4 {[%emt 0:00:06]} 4. e3 {[%emt 0:00:05]} O-O {[%emt 0:00:08]} 5. Bd2 {[%emt 0:00:03]} c5 {[%emt 0:03:11]} 6. a3 {[%emt 0:00:53]} Bxc3 {[%emt 0:00:17]} 7. Bxc3 {[%emt 0:00:06]} Ne4 {[%emt 0:01:32]} 8. Ne2 {[%emt 0:00:04]} b6 {[%emt 0:01:58]} 9. d5 {[%emt 0:02:54]} Bb7 {[%emt 0:05:48]} 10. f3 {[%emt 0:21:05]} Nxc3 {[%emt 0:00:15]} 11. Nxc3 {[%emt 0:00:04]} exd5 {[%emt 0:03:29]} 12. cxd5 {[%emt 0:00:21]} d6 {[%emt 0:00:42]} 13. Qd2 {[%emt 0:02:53]} Nd7 {[%emt 0:05:13]} 14. Be2 {[%emt 0:01:06]} a6 {[%emt 0:01:42]} 15. a4 {[%emt 0:01:43]} f5 {[%emt 0:02:10]} 16. O-O-O {[%emt 0:02:39]} Qe7 {[%emt 1:11:12]} 17. Rhe1 {[%emt 0:02:14]} Rae8 {[%emt 0:00:00]} 18. e4 {[%emt 0:00:58]} fxe4 {[%emt 0:00:00]} 19. Nxe4 {[%emt 0:00:37]} Nf6 {[%emt 0:00:00]} 20. Nc3 {[%emt 0:22:07]} Qe3 {[%emt 0:00:00]} 21. Qxe3 {[%emt 0:03:23]} Rxe3 {[%emt 0:00:00]} 22. Bd3 {[%emt 0:00:09]} Rxe1 {[%emt 0:00:00]} 23. Rxe1 {[%emt 0:00:13]} Bc8 {[%emt 0:00:00]} 24. Kd2 {[%emt 0:03:43]} Kf7 {[%emt 0:00:00]} 25. Rb1 {[%emt 0:00:11]} a5 {[%emt 0:00:00]} 26. Nb5 {[%emt 0:07:31]} Rd8 {[%emt 0:00:00]} 27. Nc3 {[%emt 0:06:46]} Re8 {[%emt 0:00:00]} 28. Nb5 {[%emt 0:00:32]} Rd8 {[%emt 0:00:00]} 29. Nc3 {[%emt 0:00:11]} Re8 {[%emt 0:00:00]} 30. Ne4 {[%emt 0:00:58]} Nxe4+ {[%emt 0:00:00]} 31. fxe4 {[%emt 0:01:27]} Rf8 {[%emt 0:00:00]} 32. Ke3 {[%emt 0:01:15]} Ke7 {[%emt 0:00:00]} 33. b3 {[%emt 0:00:21]} Bd7 {[%emt 0:00:00]} 1/2-1/2

[Event "98th Caplin Hastings Masters 2024-25"]
[Site "Hastings"]
[Date "2025.01.01"]
[Round "7.17"]
[White "Steiners, Emils"]
[Black "Bilandzic, Ante"]
[Result "0-1"]
[ECO "A52"]
[WhiteElo "2209"]
[BlackElo "1912"]
[Annotator "TA"]
[PlyCount "50"]
[EventDate "2024.12.23"]
[EventType "swiss"]
[EventCountry "ENG"]
[SourceTitle "playchess.com"]
[Source "ChessBase"]
[SourceQuality "1"]
[TimeControl "5400+30"]

{[%evp 21,50,2,26,-13,28,-400,-350,-460,-458,-989,-1082,-1066,-1066,-1033,-347,-1091,-1047,-1530,-1460,-2518,-2410,-2295,-2332,-29987,-29978,-5593,-1025,-5597,-5194,-2687,-2515]} 1. d4 {[%emt 0:00:04]} Nf6 {[%emt 0:00:15]} 2. c4 {[%emt 0:00:11]} e5 {[%emt 0:00:03]} 3. dxe5 {[%emt 0:00:25]} Ng4 {[%emt 0:00:03]} 4. Nf3 {[%emt 0:01:25]} Bc5 {[%emt 0:00:05]} 5. e3 {[%emt 0:00:30]} Nc6 {[%emt 0:00:04]} 6. Be2 {[%emt 0:04:04]} O-O {[%emt 0:00:05]} 7. O-O {[%emt 0:00:55]} Re8 {[%emt 0:00:02]} 8. Nc3 {[%emt 0:01:59]} Ngxe5 {[%emt 0:00:04]} 9. Nxe5 {[%emt 0:01:34]} Nxe5 {[%emt 0:00:08]} 10. a3 {[%emt 0:02:31]} a5 {[%emt 0:00:02]} 11. b3 {[%emt 0:01:03]} Ra6 {[%emt 0:00:07]} 12. Qc2 {[%emt 0:09:49]} Qh4 {[%emt 0:00:36] Threatens to win with ...Rh6.} 13. Ne4 $2 {[%emt 0:14:07][%mdl 8192] [#]} (13. Qe4 $11 {and White stays safe.} Qd8 14. Qd5) 13... Rh6 $1 $19 {[%emt 0:00:37]} 14. h3 {[%emt 0:00:21]} (14. f4 Qxh2+) 14... d5 {[%emt 0:00:10]} 15. Ng3 {[%emt 0:09:09] [#]} (15. cxd5 Bxh3 16. g3 (16. Nxc5 {is a self mate.} Bxg2 17. f3 Qg3) (16. gxh3 Qxh3) 16... Rg6) (15. Nxc5 $142 Bxh3 16. g3 (16. gxh3 Qxh3)) 15... Bxh3 $1 {[%emt 0:00:48][%mdl 512]} 16. gxh3 {[%emt 0:01:49]} Qxh3 {[%emt 0:01:00][%csl Gh6][%cal Rh3h2]} 17. Rd1 {[%emt 0:02:54]} Qh2+ {[%emt 0:00:17]} 18. Kf1 {[%emt 0:00:08]} Rf6 {[%emt 0:00:38][%csl Gf6,LRf2,LRg3][%cal Rh2f2]} 19. Bh5 {[%emt 0:05:56]} Qxg3 {[%emt 0:00:35]} 20. Rxd5 {[%emt 0:01:58]} Qh3+ {[%emt 0:01:33]} 21. Ke1 {[%emt 0:00:09]} Qxh5 {[%emt 0:00:18]} 22. Bb2 {[%emt 0:01:56]} Nf3+ {[%emt 0:08:48]} 23. Kd1 {[%emt 0:02:29]} Rd6 {[%emt 0:00:25]} 24. Rxd6 {[%emt 0:01:40]} Nd4+ {[%emt 0:00:54]} 25. Kc1 {[%emt 0:00:07]} Nxc2 {[%emt 0:00:15]} 0-1

[Event "98th Caplin Hastings Masters 2024-25"]
[Site "Hastings"]
[Date "2025.01.01"]
[Round "7.18"]
[White "Mikalajunas, Kajus"]
[Black "Bin-Suhayl, Ieysaa"]
[Result "0-1"]
[ECO "A11"]
[WhiteElo "1941"]
[BlackElo "2183"]
[Annotator "TA"]
[PlyCount "72"]
[EventDate "2024.12.23"]
[EventType "swiss"]
[EventCountry "ENG"]
[SourceTitle "playchess.com"]
[Source "ChessBase"]
[SourceQuality "1"]
[TimeControl "5400+30"]

{[%evp 16,72,7,6,7,0,0,0,0,-16,0,-70,-77,-80,-70,-114,-123,-110,-113,-102,-63,-67,-66,-114,-107,-143,-139,-139,-150,-318,-283,-243,-311,-284,-347,-323,-305,-471,-469,-679,-654,-678,-556,-1140,-1131,-1026,-1043,-1773,-1602,-6279,-5502,-29978,-1993,-1671,-1395,-29982,-29980,-29982,-29983]} 1. Nf3 {[%emt 0:00:02]} d5 {[%emt 0:10:48]} 2. g3 {[%emt 0:00:02]} Nf6 {[%emt 0:00:11]} 3. Bg2 {[%emt 0:00:05]} c6 {[%emt 0:00:03]} 4. O-O {[%emt 0:00:10]} Bg4 {[%emt 0:00:08]} 5. c4 {[%emt 0:00:30]} e6 {[%emt 0:00:51]} 6. cxd5 {[%emt 0:00:26]} Bxf3 {[%emt 0:02:56]} 7. Bxf3 {[%emt 0:00:18]} cxd5 {[%emt 0:00:04]} 8. Nc3 {[%emt 0:02:58]} Nc6 {[%emt 0:01:25]} 9. d4 {[%emt 0:00:25]} Bb4 {[%emt 0:00:32]} 10. e3 {[%emt 0:07:53]} Bxc3 {[%emt 0:05:19]} 11. bxc3 {[%emt 0:00:03]} O-O {[%emt 0:00:26]} 12. Rb1 {[%emt 0:09:10]} Qd7 {[%emt 0:06:18]} 13. c4 {[%emt 0:13:23]} dxc4 $15 {[%emt 0:00:06]} 14. Qc2 {[%emt 0:00:39] [#]} b5 $1 {[%emt 0:04:11]} 15. a4 {[%emt 0:15:43]} (15. Ba3 Rfb8) 15... a6 $1 {[%emt 0:00:12]} 16. Ba3 {[%emt 0:01:09][%cal Oa4b5]} Rfc8 {[%emt 0:17:47]} 17. Bc5 {[%emt 0:02:27]} Nd5 {[%emt 0:02:33]} 18. e4 $1 {[%emt 0:05:30]} Nf6 {[%emt 0:00:51] Excellent horsemanship.} 19. Rfd1 {[%emt 0:00:59]} (19. Qc3 $15) 19... Na5 $1 $17 {[%emt 0:01:33]} 20. Bb4 {[%emt 0:02:18]} (20. e5 Nd5 21. Be4 Nb7 (21... bxa4 22. Bxh7+ Kh8 23. Be4 $15) 22. Bxh7+ Kh8 $16) 20... Nb3 $1 {[%emt 0:04:28]} 21. d5 {[%emt 0:10:14]} e5 $1 {[%emt 0:01:42]} (21... bxa4 22. dxe6 Qxe6 23. e5 $14) 22. Qb2 $2 {[%emt 0:02:50]} (22. Bc3 $17 Qd6 (22... bxa4 23. Bxe5 Ne8 24. d6 $16) 23. Qb2) 22... Nd4 $1 $19 {[%emt 0:03:27]} (22... bxa4 23. Qxe5 Rab8 24. Bc3 $15) 23. Rxd4 {[%emt 0:00:55]} exd4 {[%emt 0:00:05]} 24. Qxd4 {[%emt 0:00:52] [#]} a5 $1 {[%emt 0:00:15]} (24... bxa4 25. Bc3 $11) 25. Bc5 {[%emt 0:01:40]} b4 {[%emt 0:00:24] Strongly threatening ...c3.} (25... bxa4 26. Kg2 c3 27. e5 $17) 26. e5 {[%emt 0:01:28]} (26. Re1 {was necessary.} Qc7 (26... Qxa4 27. e5 $19) 27. Bb6) 26... Qf5 {[%emt 0:00:15]} 27. Kg2 {[%emt 0:06:46]} (27. Re1 $142 Qxf3 28. exf6 Qxf6 29. Qxc4) 27... Qxb1 {[%emt 0:11:38]} 28. exf6 {[%emt 0:00:03]} c3 {[%emt 0:05:31]} 29. d6 {[%emt 0:09:24]} c2 {[%emt 0:00:21]} 30. Qg4 {[%emt 0:04:48]} g6 {[%emt 0:00:05]} (30... c1=R 31. Qxg7#) 31. Bxa8 {[%emt 0:01:59]} Rxa8 {[%emt 0:00:10] KQR-KQB} (31... c1=R 32. Qxc8#) (31... Rxc5 $2 {is the wrong capture.} 32. Qd7 $18) 32. Qe4 {[%emt 0:00:32]} Rf8 {[%emt 0:00:04]} (32... c1=R 33. Qxa8#) 33. Qe7 {[%emt 0:00:43] [#]} Qf1+ {[%emt 0:00:10]} 34. Kxf1 {[%emt 0:00:34]} c1=Q+ {[%emt 0:00:06]} ({Weaker is} 34... c1=B 35. Qxf8+ (35. d7 Bh6 36. d8=Q Rxd8 37. Qxd8+ Bf8 38. Qxf8#) 35... Kxf8 36. d7+ Kg8 37. d8=Q#) 35. Kg2 {[%emt 0:00:25]} Qxc5 {[%emt 0:00:11]} 36. d7 {[%emt 0:00:12]} Qb6 {[%emt 0:00:44]} 0-1

[Event "98th Caplin Hastings Masters 2024-25"]
[Site "Hastings"]
[Date "2025.01.01"]
[Round "7.19"]
[White "Boyer, Mahel"]
[Black "White, Stuart A"]
[Result "1-0"]
[ECO "A07"]
[WhiteElo "2526"]
[BlackElo "2017"]
[Annotator "TA"]
[PlyCount "83"]
[EventDate "2024.12.23"]
[EventType "swiss"]
[EventCountry "ENG"]
[SourceTitle "playchess.com"]
[Source "ChessBase"]
[SourceQuality "1"]
[TimeControl "5400+30"]

{[%evp 9,83,0,-2,-12,-6,-16,8,17,12,-46,14,4,16,0,0,0,0,0,-21,-9,-9,-30,-28,-37,63,59,87,45,110,70,58,29,20,0,0,0,10,0,5,0,0,-26,0,0,8,-17,0,0,83,84,112,110,157,102,85,21,142,127,115,120,118,133,137,124,115,126,788,787,29976,29977,29977,29976,29978,29979,6295,6206]} 1. Nf3 {[%emt 0:09:18]} d5 {[%emt 0:00:06]} 2. g3 {[%emt 0:00:04]} g6 {[%emt 0:00:08]} 3. Bg2 {[%emt 0:00:24]} Bg7 {[%emt 0:00:07]} 4. O-O {[%emt 0:00:05]} e5 {[%emt 0:00:10]} 5. d3 {[%emt 0:00:04]} Nc6 {[%emt 0:00:32]} 6. Nc3 {[%emt 0:03:05]} d4 {[%emt 0:00:19]} 7. Ne4 {[%emt 0:04:21]} h6 {[%emt 0:00:25]} 8. e3 {[%emt 0:04:14]} Nge7 {[%emt 0:01:52]} 9. c3 {[%emt 0:01:53]} (9. exd4 $11 exd4 10. c4) 9... O-O {[%emt 0:07:59]} (9... f5 $15 10. Nc5 b6) 10. exd4 $11 {[%emt 0:01:02]} exd4 {[%emt 0:00:16]} 11. c4 {[%emt 0:00:04]} f5 {[%emt 0:06:11]} 12. Nc5 {[%emt 0:01:41]} Qd6 {[%emt 0:03:32]} 13. Nb3 {[%emt 0:01:52]} g5 {[%emt 0:05:33][%cal Bg6g5,Bg5g4][%mdl 32]} 14. h4 {[%emt 0:02:47]} g4 $1 {[%emt 0:23:31]} 15. Nh2 {[%emt 0:04:24]} Be5 {[%emt 0:05:46] Dodges Bf4} 16. Re1 {[%emt 0:07:45]} h5 {[%emt 0:11:05]} ({Better is} 16... a5 $15) 17. c5 $1 $14 {[%emt 0:02:24]} Qg6 {[%emt 0:01:40]} 18. Bg5 {[%emt 0:05:56]} Re8 {[%emt 0:02:13]} (18... Bf6 $14) 19. Qd2 {[%emt 0:03:52] White is more active.} Bd7 {[%emt 0:06:45]} 20. Re2 {[%emt 0:03:04]} Qf7 {[%emt 0:02:06]} 21. Bf4 {[%emt 0:04:36]} Ng6 {[%emt 0:02:22]} 22. Bxe5 {[%emt 0:00:36]} Rxe5 {[%emt 0:03:08]} 23. Rxe5 {[%emt 0:05:43]} Ngxe5 {[%emt 0:00:12]} 24. Qg5+ {[%emt 0:05:40]} Kh7 {[%emt 0:00:49]} 25. Rd1 {[%emt 0:00:22]} Rg8 {[%emt 0:01:55]} 26. Qf4 {[%emt 0:00:06][%cal Og2c6]} Re8 {[%emt 0:06:37]} 27. f3 {[%emt 0:04:00]} (27. Nxd4 $2 Ng6 (27... Qxa2 $2 28. Nxf5 Qf7 29. Qh6+ Kg8 30. Bd5 $18) 28. Qxc7 Nxd4 29. Qxb7 Re7 $19) 27... Ng6 {[%emt 0:04:21]} 28. Qxc7 {[%emt 0:03:30]} f4 {[%emt 0:00:10]} (28... Re2 $11) 29. fxg4 $16 {[%emt 0:00:13]} (29. Qxb7 fxg3 30. Nxd4 gxh2+ (30... Nxd4 $2 31. fxg4 gxh2+ 32. Kh1 $19) 31. Kh1 Nxh4 (31... Nxd4 $2 32. fxg4 Re7 33. Rf1 $19) 32. Nxc6 gxf3 $19 (32... Nxf3 33. Nb8 $17) (32... Nxg2 $2 33. Nd4 $19)) 29... fxg3 {[%emt 0:00:46]} 30. Nf3 {[%emt 0:02:27] Threatens to win with Ng5+.} (30. Qxg3 $6 Nf4 31. Kh1 (31. Be4+ $2 Rxe4 32. Re1 Rxe1+ 33. Qxe1 hxg4 $19) 31... Nxg2 $11) 30... Kg8 {[%emt 0:02:10] [#]} (30... Kh8 $142 31. Rf1 Qe7) 31. Qxg3 {[%emt 0:00:19]} (31. Rf1 $142 $1) 31... Bxg4 {[%emt 0:00:27] ...Nf4 would now be deadly.} 32. Re1 {[%emt 0:01:29]} ({White should try} 32. Ng5 $16 Qf5 (32... Qf4 33. Bd5+ Kh8 34. Qxf4 $16) 33. Rf1) 32... Re3 {[%emt 0:00:23]} (32... Rxe1+ $11 {remains equal.} 33. Nxe1 Nf4) 33. Nbxd4 {[%emt 0:01:39]} Rxd3 {[%emt 0:00:38]} 34. Nxc6 {[%emt 0:00:06]} bxc6 {[%emt 0:01:09]} 35. Qb8+ {[%emt 0:00:09]} Kg7 {[%emt 0:00:27]} 36. Ne5 $36 {[%emt 0:03:31][%mdl 2048] White is in control.} Nxe5 {[%emt 0:01:21]} 37. Qxe5+ {[%emt 0:00:03]} Kg8 $2 {[%emt 0:00:12][%mdl 8192]} (37... Qf6 $16 38. Bxc6 Qxe5 39. Rxe5 Rd1+ 40. Kf2 Rd2+ 41. Ke3 Rxb2) 38. Qg5+ $18 {[%emt 0:00:49]} Kh8 {[%emt 0:00:33]} 39. Re7 {[%emt 0:00:40]} ({Weaker is} 39. Bxc6 Rg3+ 40. Bg2 Rxg2+ 41. Kxg2 Qf3+ 42. Kg1 Qg3+ 43. Kf1 Bh3+ 44. Ke2 Bg4+ 45. Kf1 Qh3+ 46. Kg1 (46. Kf2 Qf3+ 47. Kg1 Qg3+ 48. Kf1 $11) 46... Qg3+ 47. Kf1 $11) 39... Rd1+ {[%emt 0:00:24]} 40. Kh2 {[%emt 0:00:04]} Qf8 {[%emt 0:00:28]} 41. Qe5+ {[%emt 0:00:03]} (41. Rxa7 $2 {leads to mate.} Qb8+) 41... Kg8 {[%emt 0:00:05]} 42. Re8 {[%emt 0:00:04]} 1-0

[Event "98th Caplin Hastings Masters 2024-25"]
[Site "Hastings"]
[Date "2025.01.01"]
[Round "7.20"]
[White "Golding, Alex"]
[Black "Struck, Lasse"]
[Result "1/2-1/2"]
[ECO "B40"]
[WhiteElo "2405"]
[BlackElo "1983"]
[Annotator "TA"]
[PlyCount "90"]
[EventDate "2024.12.23"]
[EventType "swiss"]
[EventCountry "ENG"]
[SourceTitle "playchess.com"]
[Source "ChessBase"]
[SourceQuality "1"]
[TimeControl "5400+30"]

{[%evp 9,90,20,9,0,12,-12,0,-29,-27,-25,-30,-87,-67,-100,-78,-104,-53,-65,-25,-68,-73,-157,-162,-157,-162,-149,-173,-200,-185,-221,-219,-200,-232,-245,-235,-245,-252,-237,-214,-235,-180,-191,-131,-315,-312,-476,-337,-490,-432,-441,-343,-286,-200,-194,-125,-228,-141,-250,-229,-206,0,0,0,-25,-29,-33,-26,-37,0,0,0,0,0,-8,0,0,0,0,0,0,0,0,0]} 1. Nf3 {[%emt 0:00:05]} c5 {[%emt 0:00:09]} 2. e4 {[%emt 0:00:05]} e6 {[%emt 0:00:08]} 3. Nc3 {[%emt 0:00:25]} a6 {[%emt 0:00:27]} 4. d4 {[%emt 0:00:58]} cxd4 {[%emt 0:00:06]} 5. Qxd4 {[%emt 0:00:05]} Nc6 {[%emt 0:01:41]} 6. Qe3 {[%emt 0:02:10]} d6 {[%emt 0:00:42]} 7. Bc4 {[%emt 0:01:21]} Nf6 {[%emt 0:00:55]} 8. h3 {[%emt 0:04:00]} Qc7 {[%emt 0:03:34]} 9. Bb3 {[%emt 0:00:13]} Be7 {[%emt 0:00:25]} 10. g4 {[%emt 0:01:30]} (10. O-O $11) 10... b5 $17 {[%emt 0:03:44]} 11. Bd2 {[%emt 0:01:07]} Na5 {[%emt 0:05:32]} 12. g5 {[%emt 0:02:24]} Nd7 {[%emt 0:00:19]} ({Better is} 12... Nh5 $17) 13. Nd4 {[%emt 0:07:25][%cal Ob3e6]} Ne5 {[%emt 0:04:52]} 14. Qe2 {[%emt 0:07:30]} Nec4 {[%emt 0:07:12]} 15. Bc1 {[%emt 0:00:12]} (15. O-O-O $142) 15... Qc5 {[%emt 0:02:58]} 16. Bxc4 {[%emt 0:00:39]} Nxc4 {[%emt 0:01:41]} (16... Qxc4 17. Qxc4 Nxc4 18. b3 $15) 17. Nb3 {[%emt 0:00:05]} Qc6 {[%emt 0:02:10]} 18. f3 {[%emt 0:00:31]} O-O {[%emt 0:03:05]} 19. h4 {[%emt 0:01:30]} b4 {[%emt 0:04:28]} 20. Nd1 {[%emt 0:00:20]} a5 {[%emt 0:01:11]} 21. Nd4 {[%emt 0:00:35]} Qc5 {[%emt 0:01:58]} 22. Be3 {[%emt 0:00:40]} Nxe3 {[%emt 0:00:50]} 23. Qxe3 {[%emt 0:00:05]} Bd8 {[%emt 0:07:07]} 24. Nb3 {[%emt 0:04:50]} Qc6 {[%emt 0:01:12]} 25. Qd2 {[%emt 0:01:08]} Bb6 {[%emt 0:02:07]} (25... f5 $19 26. Nd4 Qb7) 26. Nf2 $2 {[%emt 0:00:31]} (26. Ne3 $17 {keeps fighting.}) 26... a4 $19 {[%emt 0:02:04]} 27. Nc1 {[%emt 0:00:28]} (27. Nd4 {only move.} Qc4 28. Ne2) 27... a3 {[%emt 0:04:33]} 28. bxa3 {[%emt 0:00:27]} (28. b3 $142 f5 29. Ncd3) 28... Rxa3 {[%emt 0:01:52]} ({Don't play} 28... bxa3 29. Ne2 $19) 29. Nb3 {[%emt 0:00:09]} Ba6 {[%emt 0:03:20]} 30. Nd3 {[%emt 0:00:15]} Bxd3 {[%emt 0:03:57]} 31. cxd3 {[%emt 0:00:32]} Rfa8 {[%emt 0:03:39]} (31... Qa4 $19 32. Ke2 f5 33. gxf6 Rxf6) 32. Ke2 {[%emt 0:05:19]} (32. Rc1 $17 Qd7 33. Qxb4) 32... Qa4 {[%emt 0:04:44][%cal Oa4a7]} 33. Rhc1 {[%emt 0:00:26]} (33. Rhb1 $17) 33... g6 {[%emt 0:00:32][%cal Oe6e5]} (33... Rxa2 $2 {loses.} 34. Rxa2 Qxa2 35. Rc8+ Rxc8 36. Qxa2 $18) 34. Kf1 {[%emt 0:02:01]} Rxa2 $2 {[%emt 0:02:54]} (34... Kg7 $19 {[%cal Ra3a2]} 35. d4 d5 (35... Rxa2 36. Rxa2 Qxa2 37. Qxa2 $17)) 35. Rxa2 $11 {[%emt 0:00:26]} Qxa2 {[%emt 0:00:04]} 36. Rc8+ {[%emt 0:07:52]} Kg7 $1 {[%emt 0:00:13]} 37. Rxa8 {[%emt 0:00:15]} Qxa8 {[%emt 0:02:01]} 38. Qxb4 {[%emt 0:00:09][%mdl 4096] Endgame KQB-KQN} Qa6 {[%emt 0:00:48]} 39. Qxd6 {[%emt 0:06:07]} Qb5 {[%emt 0:01:10]} 40. Nd2 {[%emt 0:00:23]} Qb2 {[%emt 0:02:51]} 41. Qf4 {[%emt 0:05:29] Prevents Be3} e5 {[%emt 0:00:48]} 42. Qf6+ {[%emt 0:00:11]} Kg8 {[%emt 0:00:08] White must now prevent ...Qc1+.} 43. Qd6 {[%emt 0:01:28]} Bd4 {[%emt 0:05:02]} 44. Qd8+ {[%emt 0:00:07]} Kg7 {[%emt 0:00:04]} 45. Qf6+ {[%emt 0:00:05]} Kg8 {[%emt 0:00:09]} 1/2-1/2